Cogmind - Beta 15 @@@ ROGUE MODE // 2025.05.17 @ 10:53:29 Player: sasha Result: Destroyed by G-34 Mercenary with Small Laser Performance ------------- Evolutions (0) 0 Regions Visited (1) 200 Robots Destroyed (13) 65 Value Destroyed (294) 294 Prototype IDs (0) 0 Alien Tech Used (0) 0 Bonus (0) 0 TOTAL SCORE: 559 Bonus ------- None Cogmind --------- Core Integrity 0/250 Matter 268/300 Energy 99/100 System Corruption 0% Temperature Cool (6) Movement Core (50) Location -10/Materials Parts ------- > --- POWER (1) -------- (None) > --- PROPULSION (2) --- Aluminum Leg > --- UTILITY (2) ------ Visual Processing Unit > --- WEAPON (2) ------- Assault Rifle Light Assault Rifle > --- INVENTORY (5) ---- Wheel Small Storage Unit EM Pulse Gun Mining Laser Peak State ------------ > --- POWER ------------ Light Ion Engine > --- PROPULSION ------- Aluminum Leg Aluminum Leg > --- UTILITY ---------- Visual Processing Unit > --- WEAPON ----------- Assault Rifle Mining Claw > --- INVENTORY -------- Wheel Small Storage Unit EM Pulse Gun Assault Rifle [Rating: 7] Favorites ----------- Power Light Ion Engine Engine Light Ion Engine Propulsion Aluminum Leg Leg Aluminum Leg Wheel Wheel Utility Visual Processing Unit Processor Visual Processing Unit Weapon Assault Rifle Ballistic Gun Assault Rifle Special Weapon Mining Laser Slashing Weapon Mining Claw Build | -11 -10 ------- Run | Yrd Mat Slots Evolved . | . . Power . | . . Propulsion . | . . Utility . | . . Weapon . | . . Parts Attached 13 | 4 9 Power 2 | 1 1 Engine 2 | 1 1 Core . | . . Reactor . | . . Propulsion 5 | 2 3 Treads . | . . Leg 4 | 2 2 Wheel 1 | . 1 Hover . | . . Flight . | . . Utility 1 | . 1 Device . | . . Storage . | . . Processor 1 | . 1 Hackware . | . . Protection . | . . Artifact . | . . Weapon 5 | 1 4 Energy Gun . | . . Energy Cannon . | . . Ballistic Gun 3 | 1 2 Ballistic Cannon . | . . Launcher . | . . Special Weapon 1 | . 1 Impact Weapon . | . . Slashing Weapon 1 | . 1 Piercing Weapon . | . . Special Melee Weapon . | . . Unidentified Prototypes . | . . Parts Lost 6 | . 6 Power 2 | . 2 Propulsion 2 | . 2 Utility . | . . Weapon 2 | . 2 Highest Loss Streak 2 | . 2 To Critical Strikes . | . . Average Backups 4 | 3 4 Power . | . . Propulsion 1 | 1 1 Utility . | . 1 Weapon 2 | 1 2 Tool/Special . | . . Unused Backups 3 | . 3 Power . | . . Propulsion . | . . Utility 1 | . 1 Weapon 2 | . 2 Tool/Special . | . . Average Slot Usage (%) 77 | . 77 Engine 10 | . 10 Leg 27 | . 27 Processor 11 | . 11 Ballistic Gun 16 | . 16 Special Weapon 3 | . 3 Slashing Weapon 6 | . 6 Peak Build Rating 7 | 4 7 Average Rating 6 | 2 6 On Entrance 2 | . 4 Naked Turns . | . . Heaviest Build 7 | 5 7 Greatest Support 20 | 20 20 Greatest Overweight (x) 1 | 1 . Average Overweight (x) . | . . Largest Inventory Capacity 5 | 5 5 Average Capacity 5 | 5 5 Most Carried 5 | 5 5 Average Carried 4 | 3 4 Final Capacity 5 | 5 5 Final Carried 4 | 4 4 Class Distribution -------------------- 81% | Mutant 18% | Scavenger-Mutant Dominant Class ---------------- Mutant | -10/Materials Resources | -11 -10 ----------- Run | Yrd Mat Matter Collected 431 | 240 191 Remotely . | . . Salvage Created 278 | . 278 Parts 22 | . 22 Haulers Intercepted . | . . Recyclers Shooed 1 | . 1 Parts Field Recycled . | . . Retrieved Matter . | . . Parts Self-Destructed . | . . Prevented . | . . Kills | -11 -10 ------- Run | Yrd Mat Combat Hostiles Destroyed 10 | . 10 Guns 9 | . 9 Cannons 1 | . 1 Classes Destroyed 4 | . 4 Builder 1 | . 1 Watcher 2 | . 2 Swarmer 4 | . 4 Grunt 6 | . 6 Best Kill Streak 5 | . 5 Combat Bots Only 5 | . 5 Max Kills in Single Turn 1 | . 1 Gunslinging . | . . Exploded . | . . Melee . | . . Uniques/NPCs Destroyed . | . . Combat | -11 -10 -------- Run | Yrd Mat Hostile Shots Fired 93 | . 93 Missed 16 | . 16 Hits 77 | . 77 Projectile 77 | . 77 Critical Strikes 1 | . 1 Damage Taken 850 | . 850 Core 261 | . 261 Absorbed by Shields . | . . Core Remaining (%) 100 | 100 . Volleys Fired 67 | . 67 Largest 2 | . 2 Hottest 120 | . 120 Shots Fired 76 | . 76 Gun 69 | . 69 Cannon . | . . Launcher . | . . Special 7 | . 7 Kinetic 69 | . 69 Thermal 7 | . 7 Explosive . | . . Electromagnetic . | . . Robot Hit Streak 9 | . 9 Robot Miss Streak 2 | . 2 Penetration Max . | . . Secondary Targets . | . . Shots Hit Robots 57 | . 57 Core Hits 20 | . 20 Critical Kills . | . . Critical Parts Destroyed . | . . Critical Strikes . | . . Melee Attacks 2 | . 2 Impact . | . . Slashing 2 | . 2 Piercing . | . . Sneak Attacks . | . . Combat Hostiles . | . . Follow-up Attacks . | . . Damage Inflicted 707 | . 707 Guns 611 | . 611 Cannons . | . . Explosions . | . . Melee . | . . Ramming . | . . Kinetic 611 | . 611 Thermal 96 | . 96 Explosive . | . . Electromagnetic . | . . Impact . | . . Slashing . | . . Piercing . | . . Highest Corruption . | . . Average Corruption . | . . Corruption Purged . | . . Corruption Blocked . | . . Overload Shots . | . . Overflow Damage . | . . Projectiles . | . . Explosions . | . . Melee . | . . Knockbacks . | . . Impact . | . . Kinetic . | . . Secondary . | . . Self-Inflicted Damage . | . . Shots . | . . Rammed . | . . Targets Rammed . | . . Kicked . | . . Crushed . | . . Highest Temperature 172 | . 172 Average Temperature 60 | . 60 Received Heat Transfer 429 | . 429 Siege Activations . | . . Martial Activations . | . . Shielding Activations . | . . Robots Disrupted . | . . Combat Hostiles . | . . Robots Corrupted . | . . Combat Hostiles . | . . Parts Fried . | . . Impact Corruptions . | . . Robots Melted . | . . Combat Hostiles . | . . Parts Melted . | . . Heat Transferred 200 | . 200 Parts Sabotaged . | . . Parts Stolen . | . . Parts Stripped . | . . Power Chain Reactions . | . . Alert | -11 -10 ------- Run | Yrd Mat Maximum Alert Level . | . . Low Security (%) 100 | 100 100 Level 1 . | . . Level 2 . | . . Level 3 . | . . Level 4 . | . . Level 5 . | . . High Security . | . . Max Security . | . . Peak Influence 115 | . 115 Initial . | . . Average 26 | . 28 Influence Increases 292 | . 292 Destroy 0b10 Robot/C 200 | . 200 Destroy 0b10 Robot/NC 15 | . 15 Destroy Leader 44 | . 44 Destroy Structure 3 | . 3 Lose Combat Pursuer 30 | . 30 Influence Decreases 225 | . 225 Time Decay 165 | . 165 Lost Part 60 | . 60 Squads Dispatched 2 | . 2 Investigation 1 | . 1 Extermination . | . . Reinforcement 1 | . 1 Assault . | . . Garrison . | . . Intercept . | . . Searches Triggered . | . . Construction Impeded . | . . Haulers Reinforced . | . . Active Scanning Responses . | . . Cargo Convoy Interrupts . | . . Stealth | -11 -10 --------- Run | Yrd Mat Distress Signals . | . . Communications Jammed . | . . Distress Signals . | . . Times Spotted 17 | . 17 Peak Tracking Total 3 | . 3 Tactical Retreats 1 | . 1 Traps | -11 -10 ------- Run | Yrd Mat Traps Triggered 1 | . 1 Indirectly . | . . Trap Hack Attempts . | . . Triggered . | . . Disarmed . | . . Reprogrammed . | . . Reused . | . . Traps Extracted . | . . Installed . | . . Triggered . | . . Machines | -11 -10 ---------- Run | Yrd Mat Machines Disabled . | . . Max in Single Turn . | . . Machines Repaired . | . . Machines Dismantled . | . . Machines Sabotaged . | . . Overloaded Fab Kills . | . . Hacking | -11 -10 --------- Run | Yrd Mat Machines Accessed . | . . Terminals . | . . Fabricators . | . . Repair Stations . | . . Recycling Units . | . . Scanalyzers . | . . Garrison Access . | . . Total Hacks . | . . Successful . | . . Failed . | . . Catastrophic . | . . Database Lockouts . | . . Manual . | . . Terminals . | . . Fabricators . | . . Repair Stations . | . . Recycling Units . | . . Scanalyzers . | . . Garrison Access . | . . Terminal Hacks . | . . Fabricator Hacks . | . . Repair Station Hacks . | . . Recycling Unit Hacks . | . . Scanalyzer . | . . Garrison Access Hacks . | . . Unauthorized Hacks . | . . Terminals . | . . Fabricators . | . . Repair Stations . | . . Recycling Units . | . . Scanalyzers . | . . Garrison Access . | . . Data Cores Recovered . | . . Used . | . . Hacking Detections . | . . Full Trace Events . | . . Feedback Events . | . . Feedback Blocked . | . . Robot Schematics Acquired . | . . Robots Built . | . . Authchips . | . . Time . | . . Total Robot Build Rating . | . . Part Schematics Acquired . | . . Parts Built . | . . Authchips . | . . Time . | . . Total Part Build Rating . | . . Parts Repaired . | . . Time . | . . Parts Recycled . | . . Recycled Matter . | . . Retrieved Matter . | . . Retrieved Components . | . . Parts Scanalyzed . | . . Part Schematics Acquired . | . . Parts Damaged . | . . Bothacking | -11 -10 ------------ Run | Yrd Mat Used RIF Installer . | . . Robots Hacked . | . . Non-combat . | . . Combat . | . . Robot Hacks Applied . | . . Relay Couplers Released . | . . Fabnet Peak Effective % . | . . Robots Rewired . | . . Allies Hacked . | . . Hacks Repelled . | . . Allies | -11 -10 -------- Run | Yrd Mat Total Allies . | . . Largest Group . | . . Highest-Rated Group . | . . Highest-Rated Ally . | . . Total Orders . | . . Ally Attacks . | . . Total Damage . | . . Kills . | . . Allies Corrupted . | . . Allies Melted . | . . Intel | -11 -10 ------- Run | Yrd Mat Active Infowar (turns) 551 | . 551 Optics 551 | . 551 Robot Analysis Total . | . . Derelict Logs Recovered . | . . Drone Launches . | . . Drone Recoveries . | . . Exploration | -11 -10 ------------- Run | Yrd Mat Turns Passed 692 | 53 639 Spaces Moved 293 | 40 253 Core 17 | 17 . Treads . | . . Legs 276 | 23 253 Wheels . | . . Hover . | . . Flight . | . . Fastest Speed 50 | 50 120 Average Speed 116 | 96 120 Slowest Speed 120 | 120 120 Overloaded Moves . | . . Propulsion Burnouts . | . . Robots Hopped . | . . Potential Cave-ins . | . . Cave-ins Triggered . | . . Exploration Rate (%) 23 | 3 43 Regions Visited 1 Branch Regions . Pre-discovered Areas . | . . Known Exits Taken . | . . Unknown Exits Taken 1 | 1 . Scrap Searched . | . . Spaces Dug . | . . Terrain Destroyed 3 | . 3 Melee . | . . Projectile 3 | . 3 AOE . | . . Terrain Rammed . | . . Walls Destroyed . | . . Machines Disabled . | . . Actions | -11 -10 --------- Run | Yrd Mat Total 555 | 54 501 Wait 164 | 3 161 Move 292 | 39 253 Hop . | . . Pick Up 13 | 8 5 Fast Attach 2 | . 2 Attach 10 | 4 6 Detach 1 | . 1 Swap 2 | . 2 Drop 2 | . 2 Fire 67 | . 67 Melee 2 | . 2 Ram . | . . Kick . | . . Crush . | . . Escape Stasis . | . . Rewire . | . . Trap . | . . Miscellaneous . | . . Route ------- -11/Scrapyard -10/Materials (discovered 2 exits: [*Mat] / [*Min]) History --------- Turn | Location | Event 26 | -11/Scrapyard | Discovered new exit (range 13) 54 | -11/Scrapyard | Entered Materials 315 | -10/Materials | Build established: Mutant 376 | -10/Materials | Discovered new exit (range 7) 407 | -10/Materials | Discovered new exit (range 17) 528 | -10/Materials | Core integrity fell below 50% 567 | -10/Materials | Core integrity fell below 20% 693 | -10/Materials | Destroyed by G-34 Mercenary with Small Laser Last Messages --------------- 00578_ R-06 Scavenger collects Flight Unit. 00580_ Acquired Lgt. Ion Engine. 00581_ Acquired 10 matter. 00587_ R-06 Scavenger collects Sml. Laser. 00587_ K-01 Serf collects debris. 00591_ R-06 Scavenger collects Aluminum Leg. 00596_ K-01 Serf collects debris. 00614_ O-16 Technician: "IFF HANDSHAKE FAILED. SECURING TERMINAL." 00620_ O-16 Technician uses terminal to summon reinforcements. 00620_ ALERT: Hostiles spotted, dispatching reinforcements to Terminal M001. 00620_ O-16 Technician locks terminal. 00652_ Aluminum Leg destroyed. 00669_ G-34 Mercenary destroyed. 00684_ R-06 Scavenger collects Heat Sink. 00685_ Lgt. Ion Engine destroyed. 00687_ R-06 Scavenger collects Aluminum Leg. 00687_ Aluminum Leg destroyed. Map ----- +----------------------------------------------------+ | ?????????????????????????????????????????????????? | | ?????????????????????????????????????????????????? | | ?????????????????????????????????????????????????? | | ?????????????????????????????????????????????????? | | ?????????????????????????????????????????????????? | | ?????????????????????????????????????????????????? | | ?????????????????????????????????????????????????? | | ?????????????????????????????????????????????????? | | ???????????????????????????" "???????????????????? | | ??????????????????????????? ?????????????????? | | ??????????????????????????? "?????????????? | | ??????????????????????????" Y?????????????? | | ???????????? "???????????"" "?????????????? | | ???????????? ""?????????"" #?????????????? | | ???????????? ???????? #?????????????? | | ???????????? ???????? #?????????????? | | ???????????? ?????????? #?????????????? | | ???????????? ?????????? #?????????????? | | ???????????? ?????????? #?????????????? | | ????????????# ?????????? ##????????????? | | ????????????# #??????????# "#????????????? | | ????????????# #??######### "T" T#????????????? | | ????????????# #??# # "#????????????? | | ????????????# #??# r# #?????????????? | | ????????????# #??# %g ! #?????????????? | | ????????????# #??# @# #?????????????? | | ????????????# #??# # """ #?????????????? | | ????????##### ############ """ #?????????????? | | ????????# """ #?????????????? | | ????????# < #?????????????? | | ????????# +?????????????? | | ????????## ######+######+##### #?????????????? | | ?????????# #??? #?? ??# #?????#######?? | | ?????????# #? # # #?????# #?? | | ?????????# ## % # """ """ # T#????# """ #?? | | ?????????# ## # """ """ # ##????# """ #?? | | ?######### ## # """ """ # #?????# """ #?? | | ?# T ## ## # """ """ # #?????# #?? | | ?# ## ######### # #?????# """ #?? | | ?# ## #!=|| #?? ??# #?????# """ #?? | | ?# ## %%+ || #???###???# ####### """ #?? | | ?# ## # | #??######## # # #?? | | ?# """ ## # #??# # # # #?? | | ?# """ ##% # #??# """ # # # #?? | | ?# """ [+ #########??# """ + + # #?? | | ?# ## ############ """ # # ###+###?? | | ?# """ ## # + + # # ## ##### | | ?# """ ## # """##### # # / = # | | ?# """ ## # """#???######## ######## + | | ?# #T # """#??????????# # ## # | +----------------------------------------------------+ Best States ------------- Heat Dissipation 25 Energy Generation 10 Energy Capacity 125 Matter Stores 300 Matter Capacity 300 Sight Range 18 Terrain Scan Density 10 Evasion (%) 55 Item Schematics ----------------- None Robot Schematics ------------------ None Fabricated ------------ Nothing Repaired ---------- Nothing Alien Tech Used ----------------- None Achievements -------------- None Challenges ------------ None Game ------ Seed IonicDamperPod Manual? 0 Play Time 00:12:54 Cumulative 86.6 hours Start 2025.05.17 @ 10:42:27 End 2025.05.17 @ 10:53:29 Sessions 1 Manual Loads 0 Difficulty Rogue Special Mode None Game No. 102 Rogue 102 Adventurer 0 Explorer 0 Win Type - Total 0 Types 0/0/0/0/0/0/0/0/0/0 Lore% 21 Gallery% 37 Achievement% 37 Wizard Run 0 Options --------- Layout 1 ASCII 0 Keyboard 0 Movement Mouse Keybinds 0 Fullscreen 2 Font 32/SmallcapsGlow Map View 50x35 Zoom Use 0% Tactical HUD 1 Map Filters NONE Filters NONE Steam 1 RUN: 05b6cb06-f7e8-4967-97d8-c2a77eb46dcd